fUST/lending_fUST_20250602
["ID","MTS","AMOUNT","RATE_DAILY","PERIOD"]
[363764011,1748865050162,-500.0,0.00019178,2]
[363764013,1748865050172,-500.0,0.00019178,2]
[363764015,1748865050183,-500.0,0.00019178,2]
[363764017,1748865050192,-500.0,0.00019178,2]
[363764019,1748865050202,-500.0,0.00019178,2]
[363764021,1748865050213,-500.0,0.00019178,2]
[363764023,1748865050222,-276.114422,0.00019178,2]
[363764025,1748865050231,-500.0,0.00019178,2]
[363764027,1748865050241,-500.0,0.00019178,2]
[363764029,1748865050251,-500.0,0.00019178,2]
[363764031,1748865050260,-500.0,0.00019178,2]
[363764033,1748865050270,-500.0,0.00019178,2]
[363764035,1748865050280,-500.0,0.00019178,2]
[363764037,1748865050290,-500.0,0.00019178,2]
[363764039,1748865050299,-500.0,0.00019178,2]
[363764041,1748865050309,-500.0,0.00019178,2]
[363764043,1748865050319,-151.0,0.00019178,2]
[363764044,1748865050328,-301.774908,0.00019178,2]
[363764046,1748865050337,-156.587,0.00019233,2]
[363764048,1748865050346,-846.03463808,0.00019264,2]
[363764050,1748865050356,-162.380719,0.00019288,2]
[363764052,1748865050366,-151.0,0.000193,2]
[363764054,1748865050376,-905.15,0.00019327,2]
[363764056,1748865050385,-1698.06,0.00019327,2]
[363764058,1748865050395,-430.0,0.00019327,2]
[363764060,1748865050405,-3628.97,0.00019327,2]
[363764062,1748865050415,-188.55680861,0.00019327,2]
[363764065,1748865050425,-2100.78,0.00019327,2]
[363764067,1748865050434,-1352.15,0.00019328,2]
[363764069,1748865050444,-556.03,0.00019328,2]
[363764071,1748865050453,-430.0,0.00019328,2]
[363764073,1748865050463,-693.65,0.00019328,2]
[363764075,1748865050474,-430.0,0.00019328,2]
[363764077,1748865050483,-430.0,0.00019328,2]
[363764079,1748865050493,-712.75,0.00019328,2]
[363764081,1748865050502,-430.0,0.00019328,2]
[363764083,1748865050511,-430.0,0.00019328,2]
[363764084,1748865050521,-151.0,0.00019329,2]
[363764087,1748865050531,-151.0,0.00019329,2]
[363764089,1748865050540,-151.0,0.00019329,2]
[363764090,1748865050550,-326.50702833,0.00019329,2]
[363764093,1748865050560,-810.52,0.00019329,2]
[363764095,1748865050570,-4672.12,0.00019329,2]
[363764097,1748865050579,-1912.09,0.00019329,2]
[363764099,1748865050590,-151.0,0.00019329,2]
[363764101,1748865050600,-151.0,0.00019329,2]
[363764103,1748865050610,-699.56,0.00019329,2]
[363764105,1748865050620,-806.8,0.00019329,2]
[363764107,1748865050631,-718.96,0.00019329,2]
[363764109,1748865050640,-1876.04,0.00019329,2]
[363764111,1748865050650,-430.0,0.00019329,2]
[363764113,1748865050660,-430.0,0.00019329,2]
[363764115,1748865050670,-460.75,0.00019329,2]
[363764117,1748865050683,-853.91,0.00019329,2]
[363764119,1748865050693,-151.0,0.00019329,2]
[363764121,1748865050703,-151.0,0.00019329,2]
[363764123,1748865050712,-790.03,0.00019329,2]
[363764125,1748865050722,-565.73,0.00019329,2]
[363764127,1748865050732,-809.586366,0.00019329,2]
[363764129,1748865050741,-809.586366,0.00019329,2]
[363764131,1748865050752,-430.0,0.00019329,2]
[363764133,1748865050763,-430.0,0.00019329,2]
[363764135,1748865050773,-523.54749587,0.00019329,2]
[363764137,1748865050782,-100000.0,0.00019329,2]
[363764139,1748865050791,-433.27,0.0001933,2]
[363764141,1748865050802,-151.0,0.00019332,2]
[363764143,1748865050812,-151.0,0.00019332,2]
[363764145,1748865050822,-168.94265941,0.00019343,2]
[363764147,1748865050831,-5032.82828888,0.00019348,2]
[363764149,1748865050841,-215.0738,0.00019364,2]
[363764151,1748865050851,-151.0,0.000194,2]
[363764153,1748865050861,-2500.0,0.0001941,2]
[363764155,1748865050870,-800.0,0.00019424,2]
[363764157,1748865050879,-1000.0,0.0001943,5]
[363764159,1748865050889,-558.70945928,0.00019435,2]
[363764161,1748865050900,-521.203,0.00019447,2]
[363764163,1748865050909,-173.12461627,0.00019447,2]
[363764165,1748865050919,-2473.0,0.000195,2]
[363764167,1748865050928,-151.0,0.00019555,2]
[363764169,1748865050938,-151.0,0.00019555,2]
[363764171,1748865050947,-199.072318,0.00019555,2]
[363764173,1748865050956,-199.072318,0.00019555,2]
[363764175,1748865050966,-291.116584,0.00019555,2]
[363764177,1748865050975,-291.116584,0.00019555,2]
[363764179,1748865050984,-153.993112,0.00019555,2]
[363764181,1748865050994,-153.993112,0.00019555,2]
[363764183,1748865051003,-529.260902,0.00019555,2]
[363764185,1748865051012,-529.260902,0.00019555,2]
[363764187,1748865051022,-5032.82828888,0.00019555,2]
[363764189,1748865051032,-1534.851286,0.00019592,2]
[363764191,1748865051041,-112667.52729,0.00019599,2]
[363764193,1748865051050,-151.0,0.000196,2]
[363764195,1748865051060,-905.15,0.00019601,2]
[363764197,1748865051070,-1698.06,0.00019601,2]
[363764199,1748865051080,-430.0,0.00019601,2]
[363764201,1748865051091,-3628.97,0.00019601,2]
[363764203,1748865051100,-2100.78,0.00019601,2]
[363764205,1748865051110,-1352.15,0.00019602,2]
[363764207,1748865051119,-556.03,0.00019602,2]
[363764209,1748865051129,-693.65,0.00019602,2]
[363764211,1748865051138,-473.01815696,0.00019602,2]
[363764213,1748865051148,-430.0,0.00019602,2]
[363764215,1748865051157,-712.75,0.00019602,2]
[363764217,1748865051167,-430.0,0.00019602,2]
[363764218,1748865051177,-430.0,0.00019602,2]
[363764221,1748865051187,-810.52,0.00019603,2]
[363764223,1748865051197,-4672.12,0.00019603,2]
[363764225,1748865051206,-1912.09,0.00019603,2]
[363764227,1748865051216,-699.56,0.00019603,2]
[363764229,1748865051226,-806.8,0.00019603,2]
[363764231,1748865051236,-718.96,0.00019603,2]
[363764233,1748865051245,-1876.04,0.00019603,2]
[363764234,1748865051254,-430.0,0.00019603,2]
[363764237,1748865051264,-416.28537315,0.00019603,2]
[363764239,1748865051274,-460.75,0.00019603,2]
[363764240,1748865051283,-853.91,0.00019603,2]
[363764243,1748865051293,-790.03,0.00019603,2]
[363764245,1748865051303,-565.73,0.00019603,2]
[363764247,1748865051314,-430.0,0.00019603,2]
[363764249,1748865051324,-430.0,0.00019603,2]
[363764251,1748865051334,-433.27,0.00019604,2]
[363764253,1748865051344,-185.465959,0.00019608,2]
[363764262,1748865051427,-151.0,0.00019608,2]
[363764265,1748865051447,-151.0,0.00019608,2]
[363764267,1748865051457,-311.7329,0.00019608,2]
[363764269,1748865051467,-311.7329,0.00019608,2]
[363764271,1748865051477,-151.0,0.00019608,2]
[363764273,1748865051487,-151.0,0.00019608,2]
[363764275,1748865051497,-841.37139856,0.00019612,2]
[363764277,1748865051506,-800.0,0.00019621,2]
[363764279,1748865051515,-151.0,0.00019631,11]
[363764281,1748865051525,-5000.0,0.00019639,2]
[363764283,1748865051536,-800.0,0.00019652,2]
[363764285,1748865051546,-151.0,0.000197,2]
[363764287,1748865051556,-151.0,0.000197,2]
[363764289,1748865051565,-800.0,0.00019742,2]
[363764291,1748865051578,-5032.82828888,0.00019762,2]
[363764292,1748865051589,-1008.38,0.00019781,2]
[363764293,1748865051598,-587.0,0.00019803,2]
[363764294,1748865051607,-587.0,0.00019804,2]
[363764295,1748865051617,-905.15,0.00019875,2]
[363764296,1748865051627,-1698.06,0.00019875,2]
[363764297,1748865051637,-430.0,0.00019875,2]
[363764298,1748865051647,-3628.97,0.00019875,2]
[363764299,1748865051656,-2100.78,0.00019875,2]
[363764300,1748865051666,-1352.15,0.00019876,2]
[363764301,1748865051680,-556.03,0.00019876,2]
[363764302,1748865051690,-693.65,0.00019876,2]
[363764303,1748865051700,-430.0,0.00019876,2]
[363764304,1748865051710,-712.75,0.00019876,2]
[363764305,1748865051721,-430.0,0.00019876,2]
[363764306,1748865051731,-541.63403878,0.00019876,2]
[363764307,1748865051741,-810.52,0.00019877,2]
[363764308,1748865051751,-4672.12,0.00019877,2]
[363764310,1748865051762,-1912.09,0.00019877,2]
[363764312,1748865051772,-699.56,0.00019877,2]
[363764314,1748865051781,-806.8,0.00019877,2]
[363764316,1748865051791,-718.96,0.00019877,2]
[363764318,1748865051800,-1876.04,0.00019877,2]
[363764320,1748865051810,-430.0,0.00019877,2]
[363764322,1748865051820,-460.75,0.00019877,2]
[363764324,1748865051830,-853.91,0.00019877,2]
[363764326,1748865051839,-790.03,0.00019877,2]
[363764328,1748865051849,-565.73,0.00019877,2]
[363764330,1748865051859,-430.0,0.00019877,2]
[363764332,1748865051869,-441.3191698,0.00019877,2]
[363764334,1748865051878,-433.27,0.00019878,2]
[363764336,1748865051889,-3172.80630522,0.000199,2]
[363764338,1748865051899,-151.0,0.00019933,12]
[363764340,1748865051908,-968.289601,0.00019944,2]
[363764342,1748865051918,-968.289601,0.00019944,2]
[363764344,1748865051928,-286.852384,0.00019944,2]
[363764346,1748865051938,-286.852384,0.00019944,2]
[363764348,1748865051948,-1548.39645406,0.00019958,2]
[363764351,1748865051958,-5032.82828888,0.00019969,2]
[363764353,1748865051968,-500.0,0.00019973,2]
[363764355,1748865051978,-500.0,0.00019973,2]
[363764357,1748865051987,-500.0,0.00019973,2]
[363764359,1748865051996,-500.0,0.00019973,2]
[363764360,1748865052005,-500.0,0.00019973,2]
[363764362,1748865052014,-500.0,0.00019973,2]
[363764364,1748865052023,-354.32907423,0.00019973,2]
[363764366,1748865052032,-501.11265055,0.00019973,2]
[363764368,1748865052042,-500.0,0.00019973,2]
[363764370,1748865052051,-503.81646108,0.00019973,2]
[363764372,1748865052060,-500.0,0.00019973,2]
[363764375,1748865052070,-500.0,0.00019973,2]
[363764377,1748865052080,-500.0,0.00019973,2]
[363764379,1748865052090,-500.0,0.00019973,2]
[363764381,1748865052100,-500.0,0.00019973,2]
[363764383,1748865052110,-500.0,0.00019973,2]
[363764385,1748865052120,-500.0,0.00019973,2]
[363764387,1748865052129,-500.0,0.00019973,2]
[363764389,1748865052139,-500.0,0.00019973,2]
[363764391,1748865052151,-500.0,0.00019973,2]
[363764393,1748865052163,-500.0,0.00019973,2]
[363764395,1748865052172,-500.0,0.00019973,2]
[363764397,1748865052181,-500.0,0.00019973,2]
[363764399,1748865052192,-500.0,0.00019973,2]
[363764401,1748865052201,-500.0,0.00019973,2]
[363764403,1748865052211,-500.0,0.00019973,2]
[363764405,1748865052221,-500.0,0.00019973,2]
[363764407,1748865052231,-500.0,0.00019973,2]
[363764409,1748865052240,-500.0,0.00019973,2]
[363764411,1748865052250,-500.0,0.00019973,2]
[363764413,1748865052259,-500.0,0.00019973,2]
[363764415,1748865052269,-500.0,0.00019973,2]
[363764417,1748865052278,-600.0,0.00019973,2]
[363764419,1748865052288,-500.0,0.00019973,2]
[363764421,1748865052297,-500.0,0.00019973,2]
[363764423,1748865052307,-500.0,0.00019973,2]
[363764425,1748865052316,-151.0,0.00019973,2]
[363764427,1748865052326,-151.0,0.00019973,2]
[363764429,1748865052336,-88244.68551454,0.00019992,2]
[363764435,1748865052383,-458.4,0.00018231,2]
[363764437,1748865052393,-107.32537315,0.00019992,2]
[363764453,1748865052543,-430.0,0.00016587,2]
[363764455,1748865052552,-430.0,0.00016861,2]
[363764457,1748865052562,-22374.20914315,0.00019992,2]
[363764460,1748865052572,-151.0,0.00019992,2]
[363764461,1748865052583,-151.0,0.00019992,2]
[363764464,1748865052593,-215.539354,0.00019992,2]
[363764466,1748865052603,-215.539354,0.00019992,2]
[363764468,1748865052613,-151.0,0.00019992,2]
[363764470,1748865052623,-280.23580309,0.00019992,2]
[363764472,1748865052632,-151.0,0.00019992,2]
[363764473,1748865052641,-151.0,0.00019992,2]
[363764475,1748865052651,-164.384606,0.00019992,2]
[363764477,1748865052660,-164.384606,0.00019992,2]
[363764479,1748865052670,-151.0,0.00019992,2]
[363764481,1748865052683,-151.0,0.00019992,2]
[363764483,1748865052692,-151.0,0.00019992,2]
[363764486,1748865052702,-151.0,0.00019992,2]
[363764488,1748865052711,-151.0,0.00019992,2]
[363764490,1748865052723,-151.0,0.00019992,2]
[363764492,1748865052732,-151.0,0.00019992,2]
[363764494,1748865052745,-151.0,0.00019992,2]
[363764503,1748865052828,-151.0,0.00019992,2]
[363764506,1748865052838,-151.0,0.00019992,2]
[363764508,1748865052848,-199.072318,0.00019992,2]
[363764510,1748865052857,-199.072318,0.00019992,2]
[363764512,1748865052866,-151.0,0.00019992,2]
[363764514,1748865052875,-291.116584,0.00019992,2]
[363764516,1748865052885,-291.116584,0.00019992,2]
[363764518,1748865052894,-153.993112,0.00019992,2]
[363764520,1748865052905,-153.993112,0.00019992,2]
[363764521,1748865052917,-529.260902,0.00019992,2]
[363764524,1748865052927,-529.260902,0.00019992,2]
[363764526,1748865052938,-271.396556,0.00019992,2]
[363764528,1748865052947,-151.0,0.00019992,2]
[363764530,1748865052956,-151.0,0.00019992,2]
[363764531,1748865052966,-261.59056,0.00019992,2]
[363764534,1748865052976,-261.59056,0.00019992,2]
[363764536,1748865052985,-151.0,0.00019992,2]
[363764538,1748865052995,-311.7329,0.00019992,2]
[363764540,1748865053005,-311.7329,0.00019992,2]
[363764542,1748865053015,-151.0,0.00019992,2]
[363764544,1748865053025,-151.0,0.00019992,2]
[363764546,1748865053035,-151.0,0.00019992,2]
[363764548,1748865053044,-243.730797,0.00019992,2]
[363764550,1748865053056,-151.0,0.00019992,2]
[363764552,1748865053067,-151.0,0.00019992,2]
[363764554,1748865053077,-809.586366,0.00019992,2]
[363764556,1748865053086,-809.586366,0.00019992,2]
[363764558,1748865053096,-500.0,0.00019999,7]
[363764560,1748865053105,-500.0,0.00019999,7]
[363764562,1748865053116,-500.0,0.00019999,7]
[363764564,1748865053126,-500.0,0.00019999,7]
[363764566,1748865053136,-500.0,0.00019999,7]
[363764568,1748865053145,-500.0,0.00019999,7]
[363764570,1748865053155,-500.0,0.00019999,7]
[363764572,1748865053164,-500.0,0.00019999,7]
[363764574,1748865053174,-500.0,0.00019999,7]
[363764576,1748865053184,-500.0,0.00019999,7]
[363764579,1748865053194,-500.0,0.00019999,7]
[363764581,1748865053204,-500.0,0.00019999,7]
[363764583,1748865053214,-500.0,0.00019999,7]
[363764584,1748865053223,-172.93,0.00019999,7]
[363764586,1748865053233,-500.0,0.00019999,7]
[363764588,1748865053242,-500.0,0.00019999,7]
[363764590,1748865053251,-500.0,0.00019999,7]
[363764592,1748865053261,-500.0,0.00019999,7]
[363764594,1748865053270,-500.0,0.00019999,7]
[363764596,1748865053279,-500.0,0.00019999,7]
[363764598,1748865053289,-500.0,0.00019999,7]
[363764600,1748865053298,-500.0,0.00019999,7]
[363764602,1748865053308,-500.0,0.00019999,7]
[363764604,1748865053317,-500.0,0.00019999,7]
[363764606,1748865053326,-500.0,0.00019999,7]
[363764608,1748865053336,-500.0,0.00019999,7]
[363764610,1748865053346,-500.0,0.00019999,7]
[363764612,1748865053356,-500.0,0.00019999,7]
[363764614,1748865053366,-500.0,0.00019999,7]
[363764616,1748865053375,-500.0,0.00019999,7]
[363764618,1748865053385,-500.0,0.00019999,7]
[363764620,1748865053395,-500.0,0.00019999,7]
[363764622,1748865053406,-552.36,0.00019999,7]
[363764624,1748865053415,-500.0,0.00019999,7]
[363764626,1748865053425,-500.0,0.00019999,7]
[363764628,1748865053434,-500.0,0.00019999,7]
[363764630,1748865053444,-500.0,0.00019999,7]
[363764632,1748865053454,-500.0,0.00019999,7]
[363764634,1748865053463,-500.0,0.00019999,7]
[363764636,1748865053473,-151.0,0.00019999,2]
[363764638,1748865053482,-151.0,0.00019999,2]
[363764640,1748865053491,-968.289601,0.00019999,2]
[363764642,1748865053501,-968.289601,0.00019999,2]
[363764644,1748865053510,-286.852384,0.00019999,2]
[363764646,1748865053520,-286.852384,0.00019999,2]
[363764648,1748865053529,-7008.01206819,0.0002,2]
[363764650,1748865053539,-500.52456652,0.0002,2]
[363764652,1748865053548,-22123.42387326,0.0002,2]
[363764654,1748865053561,-19333.09442308,0.0002,2]
[363764726,1748865054249,-430.0,0.00016589,2]
[363764728,1748865054260,-262.15,0.00016863,2]
[363764730,1748865054269,-430.0,0.00017135,2]
[363764732,1748865054279,-286.92,0.00017409,2]
[363764734,1748865054288,-10462.37330169,0.0002,2]
[363764736,1748865054301,-25200.0880335,0.0002,2]
[363764738,1748865054312,-6489.33960468,0.0002,2]
[363764740,1748865054324,-10425.99999999,0.0002,2]
[363765067,1748865168173,-5000.0,0.00016421,2]
[363765068,1748865168197,-430.0,0.00016586,2]
[363765069,1748865168223,-300.0,0.00016586,2]
[363765070,1748865168247,-516.23728154,0.00016586,2]
[363765071,1748865168271,-430.0,0.00016586,2]
[363765072,1748865168296,-430.0,0.00016586,2]
[363765073,1748865168322,-430.0,0.00016586,2]
[363765074,1748865168346,-430.0,0.00016586,2]
[363765075,1748865168373,-430.0,0.00016587,2]
[363765076,1748865168400,-430.0,0.00016587,2]
[363765077,1748865168425,-430.0,0.00016587,2]
[363765078,1748865168450,-430.0,0.00016587,2]
[363765079,1748865168474,-401.85675123,0.00016587,2]
[363765080,1748865168498,-373.90596723,0.00016587,2]
[363765081,1748865203609,3449.99016247,0.0002,120]
[363765082,1748865236171,-287.0,0.0001642,2]
[363765091,1748865562355,3927.56500225,0.00016,2]
[363765092,1748865562380,1072.43499775,0.00016,2]
[363765093,1748865565533,-300.0,0.00016584,2]
[363765094,1748865565555,-300.0,0.00016584,2]
[363765095,1748865565579,-300.0,0.00016585,2]
[363765096,1748865565603,-1200.0,0.00016585,2]
[363765097,1748865565626,-430.0,0.00016585,2]
[363765098,1748865565650,-430.0,0.00016585,2]
[363765099,1748865565674,-430.0,0.00016585,2]
[363765100,1748865565698,-430.0,0.00016585,2]
[363765101,1748865565721,-430.0,0.00016585,2]
[363765102,1748865565742,-430.0,0.00016585,2]
[363765103,1748865565765,-430.0,0.00016585,2]
[363765104,1748865565788,-420.0,0.00016585,2]
[363765105,1748865565812,-430.0,0.00016585,2]
[363765106,1748865565836,-430.0,0.00016585,2]
[363765107,1748865565861,-430.0,0.00016585,2]
[363765108,1748865565888,-531.71,0.00016585,2]
[363765109,1748865565912,-430.0,0.00016585,2]
[363765110,1748865565936,-157.29,0.00016585,2]
[363765112,1748865597375,158.704216,0.00013699,2]
[363765117,1748865741447,150.0,0.00016,3]
[363765121,1748865876828,202.0,0.00016,2]
[363765155,1748865956525,5000.0,0.00016,2]
[363765184,1748866232730,-5000.0,0.00016252,2]
[363765186,1748866232740,-183.48147607,0.00016484,2]
[363765188,1748866232750,-1523.14854822,0.00016488,2]
[363765190,1748866232760,-1200.0,0.00016574,2]
[363765192,1748866232771,-185.42,0.00016575,3]
[363765194,1748866232783,-556.3,0.00016575,3]
[363765196,1748866232793,-300.0,0.00016582,2]
[363765198,1748866232803,-300.0,0.00016582,2]
[363765200,1748866232813,-469.22602945,0.00016583,2]
[363765202,1748866232823,-430.0,0.00016583,2]
[363765204,1748866232832,-430.0,0.00016583,2]
[363765206,1748866232842,-1320.38,0.00016583,2]
[363765208,1748866232851,-430.0,0.00016583,2]
[363765209,1748866232861,-430.0,0.00016583,2]
[363765212,1748866232870,-430.0,0.00016583,2]
[363765214,1748866232880,-471.17,0.00016583,2]
[363765215,1748866232889,-3118.67,0.00016583,2]
[363765218,1748866232899,-430.0,0.00016583,2]
[363765219,1748866232909,-432.42692126,0.00016583,2]
[363765221,1748866232919,-320.0,0.00016584,2]
[363765224,1748866232928,-430.0,0.00016584,2]
[363765225,1748866232938,-434.33179113,0.00016584,2]
[363765227,1748866232947,-549.30756607,0.00016584,2]
[363765230,1748866232957,-430.0,0.00016584,2]
[363765232,1748866232967,-375.27253663,0.00016584,2]
[363765234,1748866232976,-430.0,0.00016584,2]
[363765236,1748866232986,-430.0,0.00016584,2]
[363765238,1748866232995,-430.0,0.00016584,2]
[363765240,1748866233005,-430.0,0.00016584,2]
[363765242,1748866233015,-430.0,0.00016584,2]
[363765244,1748866233024,-430.0,0.00016584,2]
[363765246,1748866233035,-479.64,0.00016584,2]
[363765248,1748866233048,-430.0,0.00016584,2]
[363765249,1748866233059,-430.0,0.00016584,2]
[363765251,1748866233069,-400.0,0.00016584,2]
[363765252,1748866233079,-188.29372022,0.00016584,2]
[363765253,1748866233089,-400.0,0.00016584,2]
[363765254,1748866233100,-400.0,0.00016584,2]
[363765255,1748866233110,-403.45030779,0.00016584,2]
[363765256,1748866233123,-430.0,0.00016584,2]
[363765257,1748866233134,-400.54523664,0.00016584,2]
[363765258,1748866233144,-405.43694539,0.00016584,2]
[363765259,1748866233155,-400.50140396,0.00016584,2]
[363765260,1748866233166,-430.0,0.00016584,2]
[363765261,1748866233177,-420.59061632,0.00016584,2]
[363765262,1748866233187,-403.27492174,0.00016584,2]
[363765263,1748866233197,-400.0,0.00016584,2]
[363765264,1748866233207,-400.0,0.00016584,2]
[363765265,1748866233218,-400.0,0.00016584,2]
[363765266,1748866233228,-430.0,0.00016584,2]
[363765267,1748866233238,-400.0,0.00016584,2]
[363765268,1748866233247,-430.0,0.00016584,2]
[363765269,1748866233259,-430.0,0.00016584,2]
[363765270,1748866233270,-561.83503069,0.00016584,2]
[363765271,1748866233280,-400.0,0.00016584,2]
[363765272,1748866233290,-430.0,0.00016584,2]
[363765273,1748866233300,-430.0,0.00016584,2]
[363765274,1748866233311,-430.0,0.00016584,2]
[363765275,1748866233320,-430.0,0.00016584,2]
[363765276,1748866233330,-416.06911421,0.00016584,2]
[363765277,1748866233339,-400.0,0.00016584,2]
[363765278,1748866233349,-430.0,0.00016584,2]
[363765279,1748866233359,-430.0,0.00016584,2]
[363765280,1748866233370,-400.0,0.00016584,2]
[363765281,1748866233381,-435.40676977,0.00016584,2]
[363765282,1748866233391,-430.0,0.00016584,2]
[363765283,1748866233401,-400.0,0.00016584,2]
[363765284,1748866233411,-426.63972116,0.00016584,2]
[363765285,1748866233421,-430.0,0.00016584,2]
[363765286,1748866233431,-406.70531427,0.00016584,2]
[363765287,1748866233441,-302.65671009,0.00016584,2]
[363765289,1748866233452,-298.79108871,0.00016584,2]
[363765290,1748866233462,-430.0,0.00016584,2]
[363765291,1748866233472,-430.0,0.00016584,2]
[363765292,1748866233482,-307.45812481,0.00016584,2]
[363765293,1748866233493,-430.0,0.00016584,2]
[363765294,1748866233504,-403.19112572,0.00016584,2]
[363765295,1748866233513,-430.0,0.00016584,2]
[363765296,1748866233524,-402.88500629,0.00016584,2]
[363765297,1748866233533,-430.0,0.00016584,2]
[363765298,1748866233544,-430.0,0.00016584,2]
[363765299,1748866233554,-430.0,0.00016584,2]
[363765300,1748866233564,-233.25082279,0.00016584,2]
[363765301,1748866233575,-430.0,0.00016584,2]
[363765302,1748866233585,-430.0,0.00016584,2]
[363765303,1748866233595,-430.0,0.00016584,2]
[363765304,1748866233605,-470.0,0.00016584,2]
[363765305,1748866233615,-430.0,0.00016584,2]
[363765306,1748866233626,-430.0,0.00016584,2]
[363765307,1748866233637,-430.0,0.00016584,2]
[363765308,1748866233647,-430.0,0.00016584,2]
[363765309,1748866233658,-430.0,0.00016584,2]
[363765311,1748866233669,-430.0,0.00016584,2]
[363765312,1748866233679,-430.0,0.00016584,2]
[363765313,1748866233689,-470.0,0.00016584,2]
[363765314,1748866233699,-430.0,0.00016584,2]
[363765315,1748866233708,-430.0,0.00016584,2]
[363765316,1748866233718,-201.05149936,0.00016584,2]
[363765317,1748866233728,-430.0,0.00016584,2]
[363765318,1748866233738,-430.0,0.00016584,2]
[363765319,1748866233747,-331.50666071,0.00016584,2]
[363765320,1748866233873,-405.5798069,0.00016584,2]
[363765321,1748866233884,-430.0,0.00016584,2]
[363765322,1748866233895,-364.46703473,0.00016584,2]
[363765323,1748866233904,-430.0,0.00016584,2]
[363765324,1748866233915,-430.0,0.00016584,2]
[363765325,1748866233926,-430.0,0.00016584,2]
[363765326,1748866233936,-430.0,0.00016584,2]
[363765327,1748866233946,-430.0,0.00016584,2]
[363765328,1748866233956,-430.0,0.00016584,2]
[363765329,1748866233966,-430.0,0.00016584,2]
[363765330,1748866233977,-430.0,0.00016584,2]
[363765331,1748866233987,-4901.09,0.00016584,2]
[363765332,1748866233997,-430.0,0.00016584,2]
[363765333,1748866234007,-430.0,0.00016584,2]
[363765334,1748866234017,-430.0,0.00016584,2]
[363765335,1748866234027,-430.0,0.00016584,2]
[363765336,1748866234036,-430.0,0.00016584,2]
[363765337,1748866234050,-430.0,0.00016584,2]
[363765338,1748866234061,-430.0,0.00016584,2]
[363765339,1748866234071,-401.30912747,0.00016584,2]
[363765340,1748866234081,-430.0,0.00016584,2]
[363765341,1748866234093,-430.0,0.00016584,2]
[363765342,1748866234104,-430.0,0.00016584,2]
[363765343,1748866234114,-430.0,0.00016584,2]
[363765344,1748866234125,-430.0,0.00016584,2]
[363765345,1748866234136,-430.0,0.00016584,2]
[363765346,1748866234147,-450.57450537,0.00016584,2]
[363765347,1748866234158,-430.0,0.00016584,2]
[363765348,1748866234168,-430.0,0.00016584,2]
[363765349,1748866234178,-430.0,0.00016584,2]
[363765350,1748866234188,-430.0,0.00016584,2]
[363765351,1748866234199,-4129.7,0.00016584,2]
[363765352,1748866234209,-430.0,0.00016584,2]
[363765353,1748866234219,-567.52697896,0.00016584,2]
[363765354,1748866234230,-2242.45,0.00016584,2]
[363765355,1748866234240,-430.0,0.00016584,2]
[363765356,1748866234250,-284.17375692,0.00016584,2]
[363765357,1748866234261,-621.61209029,0.00016584,2]